Cogmind - Beta 14 @@@ ROGUE MODE // 2025.03.16 @ 19:51:24 Player: G4-R3D Result: Destroyed by M Guard with Advanced Micro-nuke Launcher Performance ------------- Evolutions (9) 4500 Regions Visited (22) 4400 Robots Destroyed (33) 165 Value Destroyed (1482) 1482 Prototype IDs (20) 400 Alien Tech Used (5) 1000 Bonus (19633) 19633 TOTAL SCORE: 31580 Bonus ------- Triggered High Security 500 High Alert Combat Kills 503 Follower Combat Kills 130 Entered DSFs 500 Met Warlord at Base 500 MAIN.C Attacked Warlord 500 Used Core Reset Matrix 3000 Met Warlord at Research 2000 Met Sigix 2000 Met MAIN.C 5000 Destroyed MAIN.C Shell 5000 Cogmind --------- Core Integrity 0/1600 Matter 188/300 Energy 14/100 System Corruption 30% Temperature Cool (0) Movement Flying (20) Location -1/Command Parts ------- > --- POWER (2) -------- (None) > --- PROPULSION (8) --- Experimental Q-thruster > --- UTILITY (12) ----- Advanced Hacking Suite > --- WEAPON (3) ------- (None) > --- INVENTORY (5) ---- High-powered Transdimensional Reconstructor Sigix Containment Pod Peak State ------------ > --- POWER ------------ Hybrid Antimatter Reactor Improved Quantum Reactor > --- PROPULSION ------- Field Propulsion Array Field Propulsion Array Improved Diametric Drive Cooled Q-thruster Experimental Q-thruster Experimental Q-thruster > --- UTILITY ---------- Advanced Power Amplifier Advanced Heat Sink Medium Storage Unit Advanced Weight Redist. System Advanced Transmission Jammer ECM Suite Hacking Suite Hacking Suite Advanced Hacking Suite System Shield System Shield Improved System Shield > --- WEAPON ----------- Enhanced Nova Cannon Core Stripper > --- INVENTORY -------- Advanced Weight Redist. System High-powered Transdimensional Reconstructor Subatomic Replicator Terrabomb Vortex Catalyst Activator Sigix Terminator Sigix Containment Pod [Rating: 179] Favorites ----------- Power Particle Reactor Engine Improved Deuterium Engine Power Core Enhanced Nuclear Core Reactor Particle Reactor Propulsion Nuclear Pulse Array Flight Unit Nuclear Pulse Array Utility Hacking Suite Device ECM Suite Storage Small Storage Unit Processor Machine Analyzer Hackware Hacking Suite Protection Propulsion Shielding Weapon Power Sword Energy Gun Enhanced Quantum Rifle Energy Cannon Advanced Beam Cannon Ballistic Gun Assault Rifle Ballistic Cannon Linear Accelerator Launcher Vortex Catalyst Activator Impact Weapon Core Stripper Slashing Weapon Power Sword Build | -11 -10 -9 -9 -8 -7 -7 -7 -7 -5 -5 -5 -5 -4 -4 -4 -4 -3 -3 -3 -2 -1 -1 ------- Run | Yrd Mat Mat Min Mat Fac Sto Rec Scr Fac Was Fac DSF Fac Upp Upp War Pro Res Qua Res Acc Com Slots Evolved 18 | . . 2 . 2 2 . . . 4 . . . 2 . . . . 2 . 2 2 . Power 1 | . . . . . . . . . . . . . 1 . . . . . . . . . Propulsion 6 | . . 1 . . 1 . . . 2 . . . 1 . . . . 1 . . . . Utility 10 | . . 1 . 2 1 . . . 2 . . . . . . . . 1 . 2 1 . Weapon 1 | . . . . . . . . . . . . . . . . . . . . . 1 . Parts Attached 186 | 3 . 1 1 19 18 5 4 1 1 . 4 1 6 6 3 7 . 20 5 63 9 9 Power 25 | . . . . 3 4 1 1 . . . . . 1 3 1 . . 4 . 7 . . Engine 7 | . . . . 3 2 . . . . . . . 1 1 . . . . . . . . Core 5 | . . . . . 2 1 1 . . . . . . . 1 . . . . . . . Reactor 13 | . . . . . . . . . . . . . . 2 . . . 4 . 7 . . Propulsion 46 | . . . 1 4 8 1 1 . . . 2 . 3 1 . 1 . 6 2 10 5 1 Treads . | . . . . . . . . . . . . . . . . . . . . . . . Leg . | . . . . . . . . . . . . . . . . . . . . . . . Wheel . | . . . . . . . . . . . . . . . . . . . . . . . Hover . | . . . . . . . . . . . . . . . . . . . . . . . Flight 46 | . . . 1 4 8 1 1 . . . 2 . 3 1 . 1 . 6 2 10 5 1 Utility 79 | 1 . . . 8 4 1 1 1 1 . 1 . 1 1 . 2 . 10 2 37 3 5 Device 49 | 1 . . . 3 1 . 1 1 . . 1 . . . . 2 . 7 1 26 1 4 Storage 7 | . . . . 2 1 . . . . . . . . . . . . 1 . 3 . . Processor 6 | . . . . 1 . . . . . . . . . . . . . 1 . 4 . . Hackware 14 | . . . . 2 1 1 . . 1 . . . 1 1 . . . . 1 3 2 1 Protection 3 | . . . . . 1 . . . . . . . . . . . . 1 . 1 . . Artifact . | . . . . . . . . . . . . . . . . . . . . . . . Weapon 36 | 2 . 1 . 4 2 2 1 . . . 1 1 1 1 2 4 . . 1 9 1 3 Energy Gun 5 | . . 1 . . . 1 . . . . . . . . . . . . . 2 . 1 Energy Cannon 5 | . . . . 2 . . . . . . . . . . . . . . . 2 1 . Ballistic Gun 2 | 2 . . . . . . . . . . . . . . . . . . . . . . Ballistic Cannon 1 | . . . . . . . . . . . . . . . . . . . . 1 . . Launcher 4 | . . . . . . . . . . . . . . . 1 1 . . . . . 2 Special Weapon . | . . . . . . . . . . . . . . . . . . . . . . . Impact Weapon 9 | . . . . 2 . . 1 . . . 1 . . . . . . . 1 4 . . Slashing Weapon 10 | . . . . . 2 1 . . . . . 1 1 1 1 3 . . . . . . Piercing Weapon . | . . . . . . . . . . . . . . . . . . . . . . . Special Melee Weapon . | . . . . . . . . . . . . . . . . . . . . . . . Unidentified Prototypes 21 | . . . . 1 1 2 . . . . . . . . . 2 . 2 3 8 2 . Parts Lost 36 | . 3 1 . 3 2 4 . . . . . 1 . 1 . . . 1 1 . 2 17 Power 2 | . . . . 1 . . . . . . . . . . . . . . . . . 1 Propulsion 10 | . . . . 1 1 1 . . . . . 1 . . . . . . . . . 6 Utility 18 | . 1 . . 1 1 2 . . . . . . . 1 . . . 1 1 . 1 9 Weapon 6 | . 2 1 . . . 1 . . . . . . . . . . . . . . 1 1 Highest Loss Streak 16 | . 2 1 . 2 1 3 . . . . . 1 . 1 . . . 1 1 . 2 16 To Critical Strikes . | . . . . . . . . . . . . . . . . . . . . . . . Average Slot Usage (%) 78 | . 38 8 5 83 90 84 77 84 64 70 79 79 76 83 84 83 84 82 80 81 81 76 Engine 1 | . . . . 6 3 4 . . . . . . 3 . . . . . . . . . Core 2 | . . . . . 3 1 7 7 5 5 5 5 5 . 3 5 5 1 . . . . Reactor 3 | . . . . . . . . . . . . . . 8 6 5 5 7 9 8 8 7 Flight 22 | . . . 5 24 28 29 30 30 23 23 23 20 19 21 21 20 21 21 23 21 21 21 Device 12 | . 14 . . 16 8 6 5 14 11 11 16 17 11 10 10 9 10 12 15 18 20 17 Storage 4 | . . . . 5 6 7 7 7 5 5 5 5 5 5 5 5 5 4 4 4 4 3 Processor 3 | . . . . 2 7 7 7 7 5 5 5 5 5 5 5 5 5 4 4 1 . . Hackware 15 | . . . . 10 13 17 15 15 11 17 17 17 19 20 21 21 21 16 15 21 23 20 Protection 1 | . . . . . 6 . . . . . . . . . . . . 2 . . . . Ballistic Gun 1 | . 24 . . . . . . . . . . . . . . . . . . . . . Impact Weapon 2 | . . . . 8 1 . 2 . . . 3 3 . . . . . . 2 3 3 . Slashing Weapon 3 | . . . . . 4 6 . . . . . 2 6 10 10 9 10 9 3 . . . Peak Build Rating 179 | 5 5 2 2 35 44 45 40 43 43 43 67 67 90 91 91 98 89 114 140 162 179 163 Average Rating 79 | 2 4 1 1 28 39 42 37 40 41 43 62 66 79 90 89 88 89 107 127 150 164 139 On Entrance 60 | . 5 . . 2 33 43 26 40 40 43 43 67 66 90 91 89 89 89 106 140 156 144 Naked Turns 32 | . 2 24 6 . . . . . . . . . . . . . . . . . . . Heaviest Build 69 | 5 5 3 . 16 23 23 17 22 22 22 26 26 39 43 43 41 41 57 60 63 69 65 Greatest Support 69 | 3 3 3 4 18 24 24 22 22 22 22 38 38 45 47 47 47 47 67 65 69 69 65 Greatest Overweight (x) 1 | 1 1 . . . 1 . . . . . . . . . . . . . . 1 1 1 Average Overweight (x) . | . . . . . . . . . . . . . . . . . . . . . . . Largest Inventory Capacity 25 | 5 5 5 5 5 8 8 8 8 8 8 8 8 8 8 8 8 8 10 10 25 10 10 Average Capacity 8 | 5 5 5 5 5 7 8 8 8 8 8 8 8 8 8 8 8 8 8 10 10 10 9 Most Carried 10 | . 2 3 3 5 8 8 7 8 8 7 8 8 8 8 8 8 8 10 10 10 10 10 Average Carried 7 | . 1 2 2 4 6 8 6 7 7 7 7 7 7 8 8 7 8 8 9 10 10 8 Final Capacity 10 | 5 5 5 5 5 8 8 8 8 8 8 8 8 8 8 8 8 8 10 10 10 10 5 Final Carried 10 | . 2 3 3 5 8 8 6 8 7 7 7 8 8 8 8 8 8 10 10 10 10 3 Class Distribution -------------------- 54% | Hacker-Sprinter 21% | Hacker-Mutant 14% | Mutant 4% | Wizard-Sprinter Dominant Class ---------------- Mutant | -10/Materials Mutant | -9/Materials Mutant | -9/Mines Mutant | -8/Materials Hacker-Sprinter | -7/Factory Commander-Sprinter | -7/Storage Hacker-Sprinter | -7/Recycling Hacker-Sprinter | -7/Scraptown Hacker-Sprinter | -5/Factory Hacker-Sprinter | -5/Waste Hacker-Sprinter | -5/Factory Hacker-Sprinter | -5/DSF Hacker-Sprinter | -4/Factory Hacker-Mutant | -4/Upper Caves Hacker-Mutant | -4/Upper Caves Hacker-Mutant | -4/Warlord Hacker-Mutant | -3/Proximity Caves Hacker-Sprinter | -3/Research Hacker-Sprinter | -3/Quarantine Hacker-Sprinter | -2/Research Wizard-Sprinter | -1/Access Wizard-Sprinter | -1/Command Resources | -11 -10 -9 -9 -8 -7 -7 -7 -7 -5 -5 -5 -5 -4 -4 -4 -4 -3 -3 -3 -2 -1 -1 ----------- Run | Yrd Mat Mat Min Mat Fac Sto Rec Scr Fac Was Fac DSF Fac Upp Upp War Pro Res Qua Res Acc Com Matter Collected 2021 | 236 . . 120 100 215 50 55 10 . . 50 . . 125 42 27 70 4 65 845 . 7 Remotely . | . . . . . . . . . . . . . . . . . . . . . . . Salvage Created 1078 | 19 . . . 137 212 210 . . . . . . . . 44 . . . 65 148 . 243 Parts 54 | 3 . . . 11 16 11 . . . . . . . . 5 . . . . 8 . . Haulers Intercepted 2 | . . . . 1 . 1 . . . . . . . . . . . . . . . . Recyclers Shooed 1 | . . . . 1 . . . . . . . . . . . . . . . . . . Parts Field Recycled . | . . . . . . . . . . . . . . . . . . . . . . . Retrieved Matter . | . . . . . . . . . . . . . . . . . . . . . . . Parts Self-Destructed 7 | . . . . . . . . . . . . . . 4 2 . 1 . . . . . Prevented 2 | . . . . . . . . . . . . . . 2 . . . . . . . . Kills | -11 -10 -9 -9 -8 -7 -7 -7 -7 -5 -5 -5 -5 -4 -4 -4 -4 -3 -3 -3 -2 -1 -1 ------- Run | Yrd Mat Mat Min Mat Fac Sto Rec Scr Fac Was Fac DSF Fac Upp Upp War Pro Res Qua Res Acc Com Combat Hostiles Destroyed 23 | . . . . 3 5 3 . . . . . . . . 4 . . . 1 1 . 6 Melee 10 | . . . . 1 5 3 . . . . . . . . . . . . . 1 . . Cannons 2 | . . . . 2 . . . . . . . . . . . . . . . . . . AOE 10 | . . . . . . . . . . . . . . . 4 . . . . . . 6 Classes Destroyed 13 | 1 . . . 3 3 2 . . . . . . . . . . . . . . . 4 Worker 1 | . . . . . . . . . . . . . . . . . . . . . . 1 Tunneler 1 | 1 . . . . . . . . . . . . . . . . . . . . . . Hauler 2 | . . . . 1 . 1 . . . . . . . . . . . . . . . . Recycler 2 | . . . . 1 . . . . . . . . . . . . . . . . . 1 Operator 1 | . . . . . . 1 . . . . . . . . . . . . . . . . Watcher 3 | . . . . . 1 . . . . . . . . . . . . . . 2 . . Swarmer 10 | . . . . 3 3 . . . . . . . . . 4 . . . . . . . Saboteur 1 | . . . . . . . . . . . . . . . . . . . . . . 1 Grunt 3 | . . . . . . 3 . . . . . . . . . . . . . . . . Sentry 1 | . . . . . 1 . . . . . . . . . . . . . . . . . Hunter 2 | . . . . . . . . . . . . . . . . . . . . . . 2 Programmer 3 | . . . . . 1 . . . . . . . . . . . . . 1 1 . . Heavy 1 | . . . . . . . . . . . . . . . . . . . . . . 1 Combat Programmer 1 | . . . . . . . . . . . . . . . . . . . . . . 1 Best Kill Streak 8 | 1 . . . 4 3 2 . . . . . . . . 4 . . . 1 1 . 8 Combat Bots Only 6 | . . . . 2 3 1 . . . . . . . . 4 . . . 1 1 . 6 Max Kills in Single Turn 8 | 1 . . . 1 1 1 . . . . . . . . 3 . . . 1 1 . 8 Gunslinging . | . . . . . . . . . . . . . . . . . . . . . . . Exploded 6 | . . . . . . . . . . . . . . . 3 . . . . . . 6 Melee 1 | . . . . 1 1 1 . . . . . . . . . . . . . 1 . . Uniques/NPCs Destroyed 1 | . . . . . . . . . . . . . . . . . . . . . . 1 MAIN.C Shell (-1/Command) Combat | -11 -10 -9 -9 -8 -7 -7 -7 -7 -5 -5 -5 -5 -4 -4 -4 -4 -3 -3 -3 -2 -1 -1 -------- Run | Yrd Mat Mat Min Mat Fac Sto Rec Scr Fac Was Fac DSF Fac Upp Upp War Pro Res Qua Res Acc Com Hostile Shots Fired 551 | . 51 13 1 46 47 80 11 . . . 1 4 7 91 7 . 12 56 12 26 58 28 Missed 301 | . 18 6 . 25 23 56 10 . . . . 2 6 49 5 . 9 29 5 11 36 11 Damage Taken 6742 | . 374 87 10 610 391 321 11 . . . 16 77 . 679 34 . 58 553 159 324 513 2525 Core 2385 | . 133 35 10 181 17 94 11 . . . . . . 146 16 . 17 62 24 27 27 1585 Absorbed by Shields 25 | . . . . . . . . . . . . . . . . . . . . . . 25 Redirected to Shielding 41 | . . . . . 36 5 . . . . . . . . . . . . . . . . Regen/Repaired (Parts) 202 | . . . . . 108 . . . . . . . . . . 94 . . . . . . Core Remaining (%) 84 | 100 46 . 88 67 . . . 82 . . . 100 . . . . 84 . 93 98 . . Volleys Fired 44 | 1 9 3 . 9 . . . . . . . . . . 3 . . . . . 4 15 Largest 2 | 2 1 1 . 1 . . . . . . . . . . 1 . . . . . 1 1 Hottest 120 | 40 20 45 . 68 . . . . . . . . . . 36 . . . . . 120 120 Shots Fired 46 | 2 9 3 . 10 . . . . . . . . . . 3 . . . . . 4 15 Gun 14 | 2 9 3 . . . . . . . . . . . . . . . . . . . . Cannon 25 | . . . . 10 . . . . . . . . . . . . . . . . 4 11 Launcher 7 | . . . . . . . . . . . . . . . 3 . . . . . . 4 Special . | . . . . . . . . . . . . . . . . . . . . . . . Kinetic 11 | 2 9 . . . . . . . . . . . . . . . . . . . . . Thermal 26 | . . . . 10 . . . . . . . . . . . . . . . . 4 12 Explosive 3 | . . . . . . . . . . . . . . . 3 . . . . . . . Electromagnetic 3 | . . 3 . . . . . . . . . . . . . . . . . . . . Entropic 3 | . . . . . . . . . . . . . . . . . . . . . . 3 Robot Hit Streak 5 | 1 4 4 . 5 . . . . . . . . . . 1 . . . . . . 4 Robot Miss Streak 2 | 1 1 2 . 2 . . . . . . . . . . 1 . . . . . . . Penetration Max . | . . . . . . . . . . . . . . . . . . . . . . . Secondary Targets . | . . . . . . . . . . . . . . . . . . . . . . . Shots Hit Robots 54 | 1 7 3 . 10 11 7 . . . . . . . 2 2 . 1 . 3 4 . 3 Core Hits 41 | 1 1 1 . 5 5 4 . . . . . . . . 5 . . . . 2 . 17 Critical Kills 1 | . . . . 1 . . . . . . . . . . . . . . . . . . Critical Parts Destroyed 1 | . . . . 1 . . . . . . . . . . . . . . . . . . Critical Strikes 3 | . . . . 2 1 . . . . . . . . . . . . . . . . . Smash 2 | . . . . 2 . . . . . . . . . . . . . . . . . . Sever 1 | . . . . . 1 . . . . . . . . . . . . . . . . . Melee Attacks 176 | . . . . 22 34 23 5 . . . 3 6 8 17 15 . 3 16 12 11 1 . Kinetic 17 | . . . . . . . . . . . . . . . . . . . 5 11 1 . Impact 44 | . . . . 22 8 . 5 . . . 3 6 . . . . . . . . . . Slashing 115 | . . . . . 26 23 . . . . . . 8 17 15 . 3 16 7 . . . Piercing . | . . . . . . . . . . . . . . . . . . . . . . . Sneak Attacks 5 | . . . . 1 . 2 . . . . . . . . . . . . . 2 . . Combat Hostiles 2 | . . . . . . 1 . . . . . . . . . . . . . 1 . . Follow-up Attacks 1 | . . . . . . . . . . . . . . 1 . . . . . . . . Damage Inflicted 12013 | 12 103 45 . 413 625 547 . . . . . . . 66 324 . 47 . 137 238 . 9456 Guns 151 | 12 94 45 . . . . . . . . . . . . . . . . . . . . Cannons 125 | . . . . 125 . . . . . . . . . . . . . . . . . . Explosions 9780 | . . . . . . . . . . . . . . . 324 . . . . . . 9456 Melee 1948 | . . . . 288 625 547 . . . . . . . 66 . . 47 . 137 238 . . Ramming 9 | . 9 . . . . . . . . . . . . . . . . . . . . . Kinetic 481 | 12 94 . . . . . . . . . . . . . . . . . 137 238 . . Thermal 9080 | . . . . 125 . . . . . . . . . . . . . . . . . 8955 Explosive 324 | . . . . . . . . . . . . . . . 324 . . . . . . . Electromagnetic 45 | . . 45 . . . . . . . . . . . . . . . . . . . . Impact 288 | . . . . 288 . . . . . . . . . . . . . . . . . . Slashing 1285 | . . . . . 625 547 . . . . . . . 66 . . 47 . . . . . Piercing . | . . . . . . . . . . . . . . . . . . . . . . . Entropic 501 | . . . . . . . . . . . . . . . . . . . . . . 501 Highest Corruption 30 | . . . . 5 3 4 4 . . . . . . . . . . 1 2 1 7 30 Average Corruption 3 | . . . . 5 1 3 4 . . . . . . . . . . 1 1 1 5 13 Corruption Purged . | . . . . . . . . . . . . . . . . . . . . . . . Corruption Blocked . | . . . . . . . . . . . . . . . . . . . . . . . Effects 32 | . . . . 4 2 4 5 . . . . . . . . . . . 4 4 2 7 Message Errors 4 | . . . . . . 1 . . . . . . . . . . . . . 1 1 1 Matter Fused 5 | . . . . . . . 1 . . . . . . . . . . . 1 1 1 1 Heat Flow Errors 9 | . . . . 2 . 2 1 . . . . . . . . . . . 2 . . 2 Energy Discharges 7 | . . . . 1 1 1 1 . . . . . . . . . . . 1 2 . . Data Loss (minor) 2 | . . . . . 1 . . . . . . . . . . . . . . . . 1 Data Loss (major) 3 | . . . . . . . 1 . . . . . . . . . . . . . . 2 Misfires 1 | . . . . 1 . . . . . . . . . . . . . . . . . . Alerts 1 | . . . . . . . 1 . . . . . . . . . . . . . . . Overload Shots . | . . . . . . . . . . . . . . . . . . . . . . . Overflow Damage 1425 | . . . . 70 46 104 . . . . . . . . . . 7 . . . . 1198 Projectiles . | . . . . . . . . . . . . . . . . . . . . . . . Explosions 1198 | . . . . . . . . . . . . . . . . . . . . . . 1198 Melee 227 | . . . . 70 46 104 . . . . . . . . . . 7 . . . . . Knockbacks . | . . . . . . . . . . . . . . . . . . . . . . . Impact . | . . . . . . . . . . . . . . . . . . . . . . . Kinetic . | . . . . . . . . . . . . . . . . . . . . . . . Secondary . | . . . . . . . . . . . . . . . . . . . . . . . Self-Inflicted Damage 1314 | . 4 . . . . . . . . . . . . . . . . . . . . 1310 Shots 1 | . . . . . . . . . . . . . . . . . . . . . . 1 Rammed 2 | . 2 . . . . . . . . . . . . . . . . . . . . . Targets Rammed 2 | . 2 . . . . . . . . . . . . . . . . . . . . . Kicked . | . . . . . . . . . . . . . . . . . . . . . . . Crushed . | . . . . . . . . . . . . . . . . . . . . . . . Highest Temperature 298 | . . 16 . 256 3 271 233 5 . . . . . 4 6 . 15 251 221 298 75 280 Average Temperature 86 | . . 13 . 96 3 110 122 5 . . . . . 4 3 . 9 84 53 81 27 131 Received Heat Transfer 645 | . 129 42 6 126 18 117 6 . . . . . . 18 . . 21 18 . 63 54 27 Effects 4 | . . . . 4 . . . . . . . . . . . . . . . . . . Energy Bleed 1 | . . . . 1 . . . . . . . . . . . . . . . . . . Interference 3 | . . . . 3 . . . . . . . . . . . . . . . . . . Siege Activations . | . . . . . . . . . . . . . . . . . . . . . . . Robots Corrupted . | . . . . . . . . . . . . . . . . . . . . . . . Combat Hostiles . | . . . . . . . . . . . . . . . . . . . . . . . Parts Fried . | . . . . . . . . . . . . . . . . . . . . . . . Impact Corruptions 1 | . . . . 1 . . . . . . . . . . . . . . . . . . Robots Melted . | . . . . . . . . . . . . . . . . . . . . . . . Combat Hostiles . | . . . . . . . . . . . . . . . . . . . . . . . Parts Melted . | . . . . . . . . . . . . . . . . . . . . . . . Heat Transferred 868 | . . . . 222 . . . . . . . . . . . . . . . . . 646 Parts Sabotaged . | . . . . . . . . . . . . . . . . . . . . . . . Parts Stolen . | . . . . . . . . . . . . . . . . . . . . . . . Parts Stripped 18 | . . . . . . . . . . . . . . . . . . . 12 6 . . Power Chain Reactions . | . . . . . . . . . . . . . . . . . . . . . . . Alert | -11 -10 -9 -9 -8 -7 -7 -7 -7 -5 -5 -5 -5 -4 -4 -4 -4 -3 -3 -3 -2 -1 -1 ------- Run | Yrd Mat Mat Min Mat Fac Sto Rec Scr Fac Was Fac DSF Fac Upp Upp War Pro Res Qua Res Acc Com Peak Influence 4726 | 5 97 112 43 441 188 497 537 . 3 31 56 51 200 . . . . 611 458 199 315 4726 Initial 450 | . 3 32 43 16 7 81 183 . . 1 21 41 21 . . . . 450 183 181 65 201 Average 192 | 2 35 57 43 221 81 290 383 . 1 12 43 44 102 . . . . 524 349 78 140 238 Maximum Alert Level 5 | . . . . 2 . 2 2 . . . . . 1 . . . . 2 2 . 1 5 Low Security (%) 64 | 100 100 100 100 48 100 27 3 . 100 100 100 100 98 . . . . . . 100 73 30 Level 1 17 | . . . . 39 . 47 52 . . . . . 1 . . . . 4 64 . 26 68 Level 2 18 | . . . . 12 . 25 44 . . . . . . . . . . 95 34 . . . Level 3 . | . . . . . . . . . . . . . . . . . . . . . . . Level 4 . | . . . . . . . . . . . . . . . . . . . . . . . Level 5 . | . . . . . . . . . . . . . . . . . . . . . . . High Security . | . . . . . . . . . . . . . . . . . . . . . . . Max Security . | . . . . . . . . . . . . . . . . . . . . . . . Squads Dispatched 27 | . 2 2 . 3 3 2 . . . . . 1 3 . . . . 6 4 1 . . Investigation 21 | . 2 . . 2 1 2 . . . . . . 3 . . . . 6 4 1 . . Extermination . | . . . . . . . . . . . . . . . . . . . . . . . Reinforcement 6 | . . 2 . 1 2 . . . . . . 1 . . . . . . . . . . Assault . | . . . . . . . . . . . . . . . . . . . . . . . Garrison . | . . . . . . . . . . . . . . . . . . . . . . . Intercept . | . . . . . . . . . . . . . . . . . . . . . . . Searches Triggered 2 | . . . . . . . . . . . . . . . . . . 1 1 . . . Construction Impeded . | . . . . . . . . . . . . . . . . . . . . . . . Haulers Reinforced . | . . . . . . . . . . . . . . . . . . . . . . . Active Scanning Responses . | . . . . . . . . . . . . . . . . . . . . . . . Cargo Convoy Interrupts . | . . . . . . . . . . . . . . . . . . . . . . . Stealth | -11 -10 -9 -9 -8 -7 -7 -7 -7 -5 -5 -5 -5 -4 -4 -4 -4 -3 -3 -3 -2 -1 -1 --------- Run | Yrd Mat Mat Min Mat Fac Sto Rec Scr Fac Was Fac DSF Fac Upp Upp War Pro Res Qua Res Acc Com Distress Signals 12 | . . 1 . 3 1 1 . . . . . . . . . . . 1 . 4 1 . Communications Jammed 24 | . . . . . . . . . . . . . . 2 . . 2 . 7 10 3 . Distress Signals 20 | . . . . . . . . . . . . . . . . . . . 7 10 3 . Times Spotted 233 | . 9 12 3 25 24 24 5 . . 5 3 2 7 12 4 . 11 21 8 15 35 8 Peak Tracking Total 28 | . 6 11 3 12 7 8 5 . . 5 4 2 5 4 4 . 8 6 3 6 19 28 Tactical Retreats 47 | . 1 1 . 8 3 6 2 . . . 1 . 2 5 . . 1 6 2 5 3 1 Traps | -11 -10 -9 -9 -8 -7 -7 -7 -7 -5 -5 -5 -5 -4 -4 -4 -4 -3 -3 -3 -2 -1 -1 ------- Run | Yrd Mat Mat Min Mat Fac Sto Rec Scr Fac Was Fac DSF Fac Upp Upp War Pro Res Qua Res Acc Com Traps Triggered 5 | . . . . 1 3 . . . 1 . . . . . . . . . . . . . Indirectly . | . . . . . . . . . . . . . . . . . . . . . . . Trap Hack Attempts . | . . . . . . . . . . . . . . . . . . . . . . . Triggered . | . . . . . . . . . . . . . . . . . . . . . . . Disarmed . | . . . . . . . . . . . . . . . . . . . . . . . Reprogrammed . | . . . . . . . . . . . . . . . . . . . . . . . Reused . | . . . . . . . . . . . . . . . . . . . . . . . Traps Extracted . | . . . . . . . . . . . . . . . . . . . . . . . Installed . | . . . . . . . . . . . . . . . . . . . . . . . Triggered 11 | . . . . . . . . . . . . . . 5 2 3 1 . . . . . Machines | -11 -10 -9 -9 -8 -7 -7 -7 -7 -5 -5 -5 -5 -4 -4 -4 -4 -3 -3 -3 -2 -1 -1 ---------- Run | Yrd Mat Mat Min Mat Fac Sto Rec Scr Fac Was Fac DSF Fac Upp Upp War Pro Res Qua Res Acc Com Machines Disabled 22 | . . . . 1 . 5 1 . . . . . . 1 . . . . 5 1 2 6 Max in Single Turn 5 | . . . . 1 . 1 1 . . . . . . . . . . . 1 1 1 5 Garrison Access 3 | . . . . . . . . . . . . . . . . . . . . 2 1 . Machines Repaired . | . . . . . . . . . . . . . . . . . . . . . . . Machines Dismantled . | . . . . . . . . . . . . . . . . . . . . . . . Machines Sabotaged . | . . . . . . . . . . . . . . . . . . . . . . . Overloaded Fab Kills . | . . . . . . . . . . . . . . . . . . . . . . . Hacking | -11 -10 -9 -9 -8 -7 -7 -7 -7 -5 -5 -5 -5 -4 -4 -4 -4 -3 -3 -3 -2 -1 -1 --------- Run | Yrd Mat Mat Min Mat Fac Sto Rec Scr Fac Was Fac DSF Fac Upp Upp War Pro Res Qua Res Acc Com Machines Accessed 111 | . 7 1 . 11 12 11 14 1 1 . 3 . 7 1 . 12 . 11 10 4 2 3 Terminals 66 | . 6 1 . 8 5 10 6 . 1 . 1 . 4 . . . . 8 10 3 . 3 Fabricators 9 | . . . . . 4 . . . . . 1 . 1 . . . . 2 . . 1 . Repair Stations 2 | . . . . . 2 . . . . . . . . . . . . . . . . . Recycling Units 16 | . 1 . . 2 1 1 8 . . . . . 2 . . . . 1 . . . . Scanalyzers 2 | . . . . 1 . . . . . . 1 . . . . . . . . . . . Garrison Access 2 | . . . . . . . . . . . . . . . . . . . . 1 1 . Total Hacks 319 | . 22 3 . 41 37 30 43 1 3 . 9 . 23 1 . 20 . 38 21 11 8 8 Successful 173 | . 11 1 . 19 18 17 28 1 3 . 5 . 13 1 . 20 . 21 7 5 2 1 Failed 144 | . 10 1 . 22 19 13 15 . . . 4 . 10 . . . . 17 14 6 6 7 Catastrophic 21 | . . . . 1 3 4 1 . . . . . 1 . . . . 5 3 2 1 . Database Lockouts 2 | . 1 1 . . . . . . . . . . . . . . . . . . . . Manual 165 | . 18 4 . 20 22 9 26 . 2 . 3 . 16 . . . . 26 8 5 1 5 Terminals 214 | . 19 3 . 33 12 27 26 . 3 . 1 . 19 . . . . 33 21 9 . 8 Fabricators 24 | . . . . . 14 . . . . . 3 . 2 . . . . 4 . . 1 . Repair Stations 9 | . . . . . 9 . . . . . . . . . . . . . . . . . Recycling Units 30 | . 3 . . 2 2 3 17 . . . . . 2 . . . . 1 . . . . Scanalyzers 11 | . . . . 6 . . . . . . 5 . . . . . . . . . . . Garrison Access 9 | . . . . . . . . . . . . . . . . . . . . 2 7 . Terminal Hacks 88 | . 6 1 . 8 2 13 12 1 2 . 1 . 6 1 . 20 . 9 4 2 . . Record 21 | . . . . . . . . 1 . . . . . . . 18 . . 2 . . . Part Schematic 13 | . . . . . . 4 4 . . . . . . . . . . 4 . 1 . . Robot Analysis 13 | . 3 1 . 1 . 1 5 . . . . . . . . . . 1 1 . . . Prototype ID Bank 1 | . . . . . . . . . 1 . . . . . . . . . . . . . Open Door 8 | . . . . . . 4 . . . . . . . 1 . 2 . . 1 . . . Open DSF 1 | . . . . . . . . . . . 1 . . . . . . . . . . . Level Access Points 1 | . . . . . . . . . . . . . 1 . . . . . . . . . Branch Access Points 5 | . . . . 1 1 1 1 . . . . . . . . . . 1 . . . . Emergency Access Points 2 | . . . . . . . . . . . . . 2 . . . . . . . . . Terminal Index 2 | . . . . . . . 1 . 1 . . . . . . . . . . . . . Recycling Unit Index 1 | . . . . . . . 1 . . . . . . . . . . . . . . . Scanalyzer Index 1 | . . . . 1 . . . . . . . . . . . . . . . . . . Alert Level 2 | . 1 . . . . 1 . . . . . . . . . . . . . . . . Unreport Threat 4 | . . . . 3 . . . . . . . . . . . . . . . 1 . . Recall Investigation 2 | . 1 . . . . . . . . . . . 1 . . . . . . . . . Recall Extermination 1 | . . . . . . . . . . . . . . . . . . 1 . . . . Zone Layout 10 | . 1 . . 2 1 2 . . . . . . 2 . . . . 2 . . . . Fabricator Hacks 2 | . . . . . 1 . . . . . . . . . . . . 1 . . . . Load Schematic 1 | . . . . . . . . . . . . . . . . . . 1 . . . . Build 1 | . . . . . 1 . . . . . . . . . . . . . . . . . Repair Station Hacks 8 | . . . . . 8 . . . . . . . . . . . . . . . . . Scan Component 4 | . . . . . 4 . . . . . . . . . . . . . . . . . Repair 4 | . . . . . 4 . . . . . . . . . . . . . . . . . Recycling Unit Hacks 6 | . 2 . . . . . 4 . . . . . . . . . . . . . . . Process 1 | . 1 . . . . . . . . . . . . . . . . . . . . . Retrieve Matter 1 | . 1 . . . . . . . . . . . . . . . . . . . . . Retrieve Components 4 | . . . . . . . 4 . . . . . . . . . . . . . . . Scanalyzer 5 | . . . . 2 . . . . . . 3 . . . . . . . . . . . Insert Component 3 | . . . . 1 . . . . . . 2 . . . . . . . . . . . Analyze 2 | . . . . 1 . . . . . . 1 . . . . . . . . . . . Garrison Access Hacks 2 | . . . . . . . . . . . . . . . . . . . . 1 1 . Seal Access 2 | . . . . . . . . . . . . . . . . . . . . 1 1 . Unauthorized Hacks 62 | . 3 . . 9 7 4 12 . 1 . 1 . 7 . . . . 11 3 2 1 1 Terminals 40 | . 2 . . 7 3 4 4 . 1 . . . 4 . . . . 9 3 2 . 1 Assimilate 5 | . . . . 2 . . . . . . . . 1 . . . . 1 1 . . . Botnet 35 | . 2 . . 5 3 4 4 . 1 . . . 3 . . . . 8 2 2 . 1 Fabricators 8 | . . . . . 4 . . . . . 1 . 1 . . . . 1 . . 1 . Fabnet 7 | . . . . . 4 . . . . . 1 . 1 . . . . . . . 1 . Recompile 1 | . . . . . . . . . . . . . . . . . . 1 . . . . Repair Stations . | . . . . . . . . . . . . . . . . . . . . . . . Recycling Units 14 | . 1 . . 2 . . 8 . . . . . 2 . . . . 1 . . . . Tunnel 14 | . 1 . . 2 . . 8 . . . . . 2 . . . . 1 . . . . Scanalyzers . | . . . . . . . . . . . . . . . . . . . . . . . Garrison Access . | . . . . . . . . . . . . . . . . . . . . . . . Data Cores Recovered 1 | . . . . . . 1 . . . . . . . . . . . . . . . . Used . | . . . . . . . . . . . . . . . . . . . . . . . Hacking Detections 65 | . 5 . . 8 10 7 5 . 1 . 1 . 4 . . . . 8 8 4 1 3 Full Trace Events 17 | . 2 . . 1 1 2 1 . . . . . 1 . . . . 4 4 1 . . Feedback Events 2 | . . . . . . 2 . . . . . . . . . . . . . . . . Corruption 1 | . . . . . . 1 . . . . . . . . . . . . . . . . Hackware Fried 1 | . . . . . . 1 . . . . . . . . . . . . . . . . Feedback Blocked 1 | . . . . . . . . . . . . . . . . . . . . 1 . . Robot Schematics Acquired . | . . . . . . . . . . . . . . . . . . . . . . . Robots Built 4 | . . . . . 4 . . . . . . . . . . . . . . . . . Authchips . | . . . . . . . . . . . . . . . . . . . . . . . Time 40 | . . . . . 40 . . . . . . . . . . . . . . . . . Total Robot Build Rating 4 | . . . . . 4 . . . . . . . . . . . . . . . . . Part Schematics Acquired 15 | . . . . 1 . 4 4 . . . 1 . . . . . . 4 . 1 . . Parts Built . | . . . . . . . . . . . . . . . . . . . . . . . Authchips . | . . . . . . . . . . . . . . . . . . . . . . . Time . | . . . . . . . . . . . . . . . . . . . . . . . Total Part Build Rating . | . . . . . . . . . . . . . . . . . . . . . . . Parts Repaired 4 | . . . . . 4 . . . . . . . . . . . . . . . . . Time 176 | . . . . . 176 . . . . . . . . . . . . . . . . . Parts Recycled . | . . . . . . . . . . . . . . . . . . . . . . . Recycled Matter . | . . . . . . . . . . . . . . . . . . . . . . . Retrieved Matter . | . . . . . . . . . . . . . . . . . . . . . . . Retrieved Components 7 | . . . . . . . 7 . . . . . . . . . . . . . . . Parts Scanalyzed 2 | . . . . 1 . . . . . . 1 . . . . . . . . . . . Part Schematics Acquired 2 | . . . . 1 . . . . . . 1 . . . . . . . . . . . Parts Damaged 1 | . . . . . . . . . . . 1 . . . . . . . . . . . Bothacking | -11 -10 -9 -9 -8 -7 -7 -7 -7 -5 -5 -5 -5 -4 -4 -4 -4 -3 -3 -3 -2 -1 -1 ------------ Run | Yrd Mat Mat Min Mat Fac Sto Rec Scr Fac Was Fac DSF Fac Upp Upp War Pro Res Qua Res Acc Com Used RIF Installer . | . . . . . . . . . . . . . . . . . . . . . . . Robots Hacked 1 | . . . . . . . . . . . . . . 1 . . . . . . . . Non-combat . | . . . . . . . . . . . . . . . . . . . . . . . Combat 1 | . . . . . . . . . . . . . . 1 . . . . . . . . Robot Hacks Applied . | . . . . . . . . . . . . . . . . . . . . . . . Relay Couplers Released 1 | . . . . . . . . . . . . . . . . . . . . 1 . . Machine Destruction 1 | . . . . . . . . . . . . . . . . . . . . 1 . . Fabnet Peak Effective % 4 | . . . . . . . . . 4 4 4 4 3 3 3 3 4 4 4 1 . . Autooverrided 1 | . . . . . . . . . . . . . . 1 . . . . . . . . Robots Rewired . | . . . . . . . . . . . . . . . . . . . . . . . Allies Hacked . | . . . . . . . . . . . . . . . . . . . . . . . Hacks Repelled . | . . . . . . . . . . . . . . . . . . . . . . . Allies | -11 -10 -9 -9 -8 -7 -7 -7 -7 -5 -5 -5 -5 -4 -4 -4 -4 -3 -3 -3 -2 -1 -1 -------- Run | Yrd Mat Mat Min Mat Fac Sto Rec Scr Fac Was Fac DSF Fac Upp Upp War Pro Res Qua Res Acc Com Total Allies 17 | . . . . 1 4 10 . . . . . . . 1 . . . 1 . . . . Largest Group 10 | . . . . 1 4 10 . . . . . . . 1 . . . 1 . . . . Highest-Rated Group 173 | . . . . 10 24 173 . . . . . . . 64 . . . 10 . . . . Highest-Rated Ally 64 | . . . . 10 6 29 . . . . . . . 64 . . . 10 . . . . Total Orders . | . . . . . . . . . . . . . . . . . . . . . . . Ally Attacks 46 | . . . . . . 43 . . . . . . . 3 . . . . . . . . Total Damage 656 | . . . . . . 576 . . . . . . . 80 . . . . . . . . Kills 6 | . . . . . . 5 . . . . . . . 1 . . . . . . . . Allies Corrupted . | . . . . . . . . . . . . . . . . . . . . . . . Allies Melted . | . . . . . . . . . . . . . . . . . . . . . . . Intel | -11 -10 -9 -9 -8 -7 -7 -7 -7 -5 -5 -5 -5 -4 -4 -4 -4 -3 -3 -3 -2 -1 -1 ------- Run | Yrd Mat Mat Min Mat Fac Sto Rec Scr Fac Was Fac DSF Fac Upp Upp War Pro Res Qua Res Acc Com Robot Analysis Total 13 | . 3 1 . 1 . 1 5 . . . . . . . . . . 1 1 . . . Derelict Logs Recovered . | . . . . . . . . . . . . . . . . . . . . . . . Drone Launches . | . . . . . . . . . . . . . . . . . . . . . . . Drone Recoveries . | . . . . . . . . . . . . . . . . . . . . . . . Exploration | -11 -10 -9 -9 -8 -7 -7 -7 -7 -5 -5 -5 -5 -4 -4 -4 -4 -3 -3 -3 -2 -1 -1 ------------- Run | Yrd Mat Mat Min Mat Fac Sto Rec Scr Fac Was Fac DSF Fac Upp Upp War Pro Res Qua Res Acc Com Turns Passed 4682 | 27 247 82 16 418 619 202 175 192 8 16 113 45 133 286 147 195 144 417 260 687 136 117 Spaces Moved 11081 | 23 264 147 33 784 1025 325 580 691 25 60 340 87 322 702 311 491 402 1167 636 1831 529 306 Core 445 | 23 264 147 11 . . . . . . . . . . . . . . . . . . . Treads . | . . . . . . . . . . . . . . . . . . . . . . . Legs . | . . . . . . . . . . . . . . . . . . . . . . . Wheels . | . . . . . . . . . . . . . . . . . . . . . . . Hover . | . . . . . . . . . . . . . . . . . . . . . . . Flight 10636 | . . . 22 784 1025 325 580 691 25 60 340 87 322 702 311 491 402 1167 636 1831 529 306 Fastest Speed 15 | 50 50 50 35 32 27 28 27 27 27 27 25 29 29 29 34 34 34 26 26 24 15 15 Average Speed 30 | 89 85 50 40 34 28 29 27 27 27 27 28 30 29 33 34 34 34 28 26 26 20 19 Slowest Speed 107 | 100 100 50 50 37 107 34 27 27 27 27 29 32 32 34 34 34 34 32 27 106 92 93 Overloaded Moves . | . . . . . . . . . . . . . . . . . . . . . . . Propulsion Burnouts . | . . . . . . . . . . . . . . . . . . . . . . . Robots Hopped 77 | . . . 2 10 2 4 8 2 . . 3 1 1 . . . . 17 18 4 4 1 Cave-ins Triggered 3 | . . . . 1 . . . . . . . . . . . . . . . . . 2 Exploration Rate (%) 45 | 3 54 24 10 78 33 59 91 56 2 68 12 85 11 82 53 76 72 32 64 45 20 17 Regions Visited 22 Branch Regions 10 Pre-discovered Areas 15 | . 1 . . 2 . . 8 . . . . . 2 . . 1 . 1 . . . . Known Exits Taken 7 | . . . . . 1 1 . . . . 1 . . . . . 1 1 1 1 . . Unknown Exits Taken 12 | 1 1 1 1 1 . . 1 1 . . . . 1 1 1 1 . . . . 1 . Scrap Searched 10 | . . . 1 . . . . 3 . . . . . 3 1 . 2 . . . . . Spaces Dug 110 | . . . . 18 17 6 4 . . . 3 5 6 11 12 . . 13 1 3 . 11 Terrain Destroyed 3215 | . . . . 18 17 6 4 . . . 3 5 6 11 22 . . 13 1 3 . 3106 Melee 99 | . . . . 18 17 6 4 . . . 3 5 6 11 12 . . 13 1 3 . . Projectile 11 | . . . . . . . . . . . . . . . . . . . . . . 11 AOE 3105 | . . . . . . . . . . . . . . . 10 . . . . . . 3095 Terrain Rammed . | . . . . . . . . . . . . . . . . . . . . . . . Walls Destroyed . | . . . . . . . . . . . . . . . . . . . . . . . Machines Disabled . | . . . . . . . . . . . . . . . . . . . . . . . Actions | -11 -10 -9 -9 -8 -7 -7 -7 -7 -5 -5 -5 -5 -4 -4 -4 -4 -3 -3 -3 -2 -1 -1 --------- Run | Yrd Mat Mat Min Mat Fac Sto Rec Scr Fac Was Fac DSF Fac Upp Upp War Pro Res Qua Res Acc Com Total 11949 | 26 276 151 33 866 1281 383 581 693 26 59 348 94 344 729 329 519 405 1215 688 2007 545 351 Wait 366 | . . . . 26 189 28 . 2 . . . . 1 2 . 15 1 4 40 49 1 8 Move 10915 | 22 263 146 28 763 1020 316 564 687 25 59 334 84 319 701 310 490 401 1136 603 1822 520 302 Hop 67 | . . . 2 10 2 4 7 1 . . 3 1 1 . . . . 13 14 4 4 1 Pick Up 42 | . 2 1 1 10 6 1 1 1 . . 1 1 3 . . . . 6 6 . . 2 Fast Attach 138 | 3 . 1 1 12 9 3 1 1 . . 2 1 4 4 1 5 . 14 3 59 9 5 Attach 27 | . . . . 5 1 . 3 . 1 . 2 . 2 . . 1 . 1 5 . . 6 Detach 9 | . . . . . 2 1 . 1 . . 2 . . . . 1 . 2 . . . . Swap 26 | . . . . 2 8 2 . . . . . . . 2 2 1 . 5 . 4 . . Drop 144 | . . . 1 7 10 5 . . . . 1 1 6 5 1 6 . 21 6 58 6 10 Fire 44 | 1 9 3 . 9 . . . . . . . . . . 3 . . . . . 4 15 Melee 167 | . . . . 22 34 23 5 . . . 3 6 8 15 12 . 3 13 11 11 1 . Ram 2 | . 2 . . . . . . . . . . . . . . . . . . . . . Kick . | . . . . . . . . . . . . . . . . . . . . . . . Crush . | . . . . . . . . . . . . . . . . . . . . . . . Escape Stasis 2 | . . . . . . . . . . . . . . . . . . . . . . 2 Rewire . | . . . . . . . . . . . . . . . . . . . . . . . Trap . | . . . . . . . . . . . . . . . . . . . . . . . Miscellaneous . | . . . . . . . . . . . . . . . . . . . . . . . Route ------- -11/Scrapyard -10/Materials (discovered 4 exits: *Mat x2 / [*Min x2]) -9/Materials -9/Mines -8/Materials (discovered 2 exits: *Fac x2) -7/Factory (discovered 4 exits: [*Fac] / *Sto / *Low x2) -7/Storage -7/Recycling (discovered 2 exits: *Fac / *Scr) -7/Scraptown -5/Factory -5/Waste -5/Factory -5/DSF -4/Factory (discovered 6 exits: Res x4 / *Upp / [*Ext]) -4/Upper Caves -4/Upper Caves -4/Warlord -3/Proximity Caves -3/Research (discovered 4 exits: *Res / *Arm / *Qua x2) -3/Quarantine -2/Research (discovered 2 exits: *Acc x2) -1/Access -1/Command History --------- Turn | Location | Event 5 | -11/Scrapyard | Discovered new exit (range 15) 28 | -11/Scrapyard | Entered Materials 62 | -10/Materials | Discovered new exit (range 17) 192 | -10/Materials | Discovered new exit (range 14) 222 | -10/Materials | Discovered new exit (range 15) 228 | -10/Materials | Central database locked down 271 | -10/Materials | Discovered new exit (range 5) 273 | -10/Materials | Core integrity fell below 50% 275 | -10/Materials | Entered another Materials area 275 | -9/Materials | Evolved 2 slots: Propulsion x1, Utility x1 314 | -9/Materials | Build established: Mutant 328 | -9/Materials | Discovered new exit (range 10) 345 | -9/Materials | Central database locked down 357 | -9/Materials | Entered Mines 364 | -9/Mines | Discovered new exit (range 12) 373 | -9/Mines | Entered Materials 373 | -8/Materials | Evolved 2 slots: Utility x2 459 | -8/Materials | Discovered new exit (range 16) 630 | -8/Materials | Crushed by falling debris 673 | -8/Materials | Discovered new exit (range 11) 791 | -8/Materials | Entered Factory 791 | -7/Factory | Evolved 2 slots: Propulsion x1, Utility x1 1010 | -7/Factory | Repaired Xenon Bombardment Thruster 1055 | -7/Factory | Repaired Xenon Bombardment Thruster 1143 | -7/Factory | Fabricated K-01 Serf? 1217 | -7/Factory | Repaired Xenon Bombardment Thruster 1262 | -7/Factory | Repaired Greatsword 1291 | -7/Factory | Discovered new exit (range 8) 1306 | -7/Factory | Identified exit to Storage 1306 | -7/Factory | Identified exit to Lower Caves 1410 | -7/Factory | Entered Storage 1437 | -7/Storage | Build established: Hacker-Sprinter 1453 | -7/Storage | Identified exit to Recycling 1454 | -7/Storage | Assisted by bots powering up and referring to "LRC-V3" 1486 | -7/Storage | Hacking Suite fried by hacking feedback 1545 | -7/Storage | Lost 5 allies 1610 | -7/Storage | Used back door to open Recycling access 1612 | -7/Storage | Entered Recycling 1628 | -7/Recycling | Scanned before Scraplab entrance 1640 | -7/Recycling | Lost 3 parts (1n1u1w) 1736 | -7/Recycling | Discovered new exit (range 16) 1784 | -7/Recycling | Entered Scraplab 1787 | -7/Recycling | Discovered new exit (range 2) 1787 | -7/Recycling | Entered Scraptown 1787 | -7/Scraptown | System corruption cleaned by C-Scrubber 1814 | -7/Scraptown | Heard Great Nut preacher, LISTEN AND RECITE! 1863 | -7/Scraptown | Visited Red Mages 1871 | -7/Scraptown | Visited Assassins FH 1874 | -7/Scraptown | Visited Fellowship of the Rings 1895 | -7/Scraptown | Visited Cyclists 1902 | -7/Scraptown | Visited Symbiants 1952 | -7/Scraptown | Visited SPCMW 1954 | -7/Scraptown | Visited Awakened 1977 | -7/Scraptown | Discovered new exit (range 9) 1979 | -7/Scraptown | Entered Factory 1979 | -5/Factory | Evolved 4 slots: Propulsion x2, Utility x2 1987 | -5/Factory | Sucked down chute 1987 | -5/Factory | Entered Waste 1993 | -5/Waste | Spotted C-40 Crusher 1995 | -5/Waste | Spotted C-40 Crusher 1996 | -5/Waste | Spotted C-40 Crusher 1997 | -5/Waste | Spotted C-40 Crusher 1998 | -5/Waste | Spotted C-40 Crusher 1999 | -5/Waste | Discovered new exit (range 16) 2000 | -5/Waste | Spotted C-40 Crusher 2003 | -5/Waste | Entered Factory 2116 | -5/Factory | Identified exit to DSF 2116 | -5/Factory | Entered DSF 2130 | -5/DSF | Additional patrols routed to DSF 2157 | -5/DSF | Discovered new exit (range 13) 2161 | -5/DSF | Entered Factory 2161 | -4/Factory | Evolved 2 slots: Power x1, Propulsion x1 2192 | -4/Factory | Identified exit to Research 2214 | -4/Factory | Spotted B-86 Titan 2272 | -4/Factory | Discovered new exit (range 14) 2292 | -4/Factory | Discovered new exit (range 15) 2294 | -4/Factory | Entered Upper Caves 2328 | -4/Upper Caves | Found DCF Scrap (14 items) 2377 | -4/Upper Caves | Encountered a Warlord checkpoint 2420 | -4/Upper Caves | Discovered new exit (range 10) 2566 | -4/Upper Caves | Attracted the attention of an 0b10 checkpoint 2580 | -4/Upper Caves | Entered another Upper Caves area 2609 | -4/Upper Caves | Build established: Hacker-Mutant 2720 | -4/Upper Caves | Encountered a Warlord checkpoint 2722 | -4/Upper Caves | Discovered new exit (range 13) 2727 | -4/Upper Caves | Entered Warlord 2804 | -4/Warlord | Visited the Vortex Lab 2808 | -4/Warlord | Found Prototype Launcher 2808 | -4/Warlord | Identified Vortex Catalyst Activator 2826 | -4/Warlord | Warlord's base attacked by MAIN.C 2856 | -4/Warlord | Met Warlord 2875 | -4/Warlord | Learned location of Command (-1) 2875 | -4/Warlord | Learned Testing emergency access door positions 2876 | -4/Warlord | Learned 4 Armory zone layouts 2876 | -4/Warlord | Learned 4 Research zone layouts 2876 | -4/Warlord | Learned 4 Research zone layouts 2876 | -4/Warlord | Learned 4 Research zone layouts 2876 | -4/Warlord | Learned Factory scanalyzer intel 2876 | -4/Warlord | Learned Research recycling unit intel 2900 | -4/Warlord | Found Prototype Device 2900 | -4/Warlord | Identified Minesniffer Drone Bay 2913 | -4/Warlord | Opened side exit 2920 | -4/Warlord | Discovered new exit (range 9) 2922 | -4/Warlord | Entered Proximity Caves 2949 | -3/Proximity Caves | Spotted B-86 Titan 2968 | -3/Proximity Caves | Spotter reported a threat 3029 | -3/Proximity Caves | Spotter reported a threat 3032 | -3/Proximity Caves | Spotter reported a threat 3061 | -3/Proximity Caves | Discovered exit to Research (range 15) 3066 | -3/Proximity Caves | Entered Research 3066 | -3/Research | Evolved 2 slots: Propulsion x1, Utility x1 3067 | -3/Research | Identified exit to Research 3068 | -3/Research | Loaded intel: 4 recycling unit locations 3158 | -3/Research | Spotted B-86 Titan 3177 | -3/Research | Spotted B-86 Titan 3215 | -3/Research | Identified exit to Armory 3215 | -3/Research | Identified exit to Quarantine 3316 | -3/Research | Search patrols dispatched 3390 | -3/Research | Build established: Hacker-Sprinter 3483 | -3/Research | Entered Quarantine 3483 | -3/Quarantine | Spotted Alpha 7 3490 | -3/Quarantine | Found Alien Launcher 3538 | -3/Quarantine | Found Alien Artifact 3538 | -3/Quarantine | Identified Subatomic Replicator 3563 | -3/Quarantine | Found Alien Artifact 3568 | -3/Quarantine | Found Alien Artifact 3582 | -3/Quarantine | Found Alien Impact Weapon 3582 | -3/Quarantine | Identified Core Stripper 3652 | -3/Quarantine | Found Alien Artifact 3652 | -3/Quarantine | Identified Core Reset Matrix 3652 | -3/Quarantine | Identified Sigix Terminator 3652 | -3/Quarantine | Identified Terrabomb (x2) 3652 | -3/Quarantine | Used Core Reset Matrix 3656 | -3/Quarantine | Detected hypermatrix surge 3656 | -3/Quarantine | Sensed 12 artifacts in vicinity 3676 | -3/Quarantine | Used Terrabomb 3678 | -3/Quarantine | Met incapacitated Sigix Warrior 3678 | -3/Quarantine | Lockdown squad dispatched 3680 | -3/Quarantine | Acquired the access code to the Sigix quarantine chamber 3681 | -3/Quarantine | Unlocked Sigix quarantine chamber 3681 | -3/Quarantine | Found Sigix Containment Pod 3697 | -3/Quarantine | Spotted Lightning 3716 | -3/Quarantine | Discovered exit to Research (range 13) 3733 | -3/Quarantine | Search patrols dispatched 3736 | -3/Quarantine | Found Hpw. Transdimensional Reconstructor 3743 | -3/Quarantine | Entered Research 3743 | -2/Research | Warlord forces began assault on 0b10 3743 | -2/Research | Evolved 2 slots: Utility x2 3765 | -2/Research | Spotted B-90 Cyclops 3853 | -2/Research | Research machine network offline 3877 | -2/Research | Found Prototype Device 3877 | -2/Research | Identified Exp. ECM Suite 3882 | -2/Research | Discovered new exit (range 6) 3883 | -2/Research | Met up with Warlord 3907 | -2/Research | Found Prototype Device 3907 | -2/Research | Identified Exp. Force Field 4134 | -2/Research | Found Prototype Device 4134 | -2/Research | Identified Adv. Kinecellerator 4206 | -2/Research | Borebot progress halted 4310 | -2/Research | Spotted B-90 Cyclops 4382 | -2/Research | Discovered new exit (range 15) 4402 | -2/Research | Identified exit to Access 4424 | -2/Research | Borebot progress halted 4430 | -2/Research | Entered Access 4430 | -1/Access | Evolved 2 slots: Utility x1, Weapon x1 4470 | -1/Access | Spotted B-99 Colossus 4562 | -1/Access | Discovered new exit (range 11) 4564 | -1/Access | Spotted B-99 Colossus 4564 | -1/Access | Spotted B-99 Colossus 4566 | -1/Access | Entered Command 4578 | -1/Command | Spotted B-99 Colossus 4609 | -1/Command | Lost 3 parts (2u1w) 4615 | -1/Command | Spotted Combat Programmer 4643 | -1/Command | Used Terrabomb 4646 | -1/Command | Crushed by falling debris 4647 | -1/Command | System corruption reached 10% 4653 | -1/Command | Crushed by falling debris 4654 | -1/Command | System corruption reached 30% 4656 | -1/Command | Spotted M Guard 4664 | -1/Command | Used Subatomic Replicator to create Supercharged Sigix Terminator 4670 | -1/Command | Met MAIN.C 4670 | -1/Command | 0b10 Conduit disabled 4682 | -1/Command | Fired Supercharged Sigix Terminator 4682 | -1/Command | Destroyed MAIN.C Shell 4682 | -1/Command | High security lockdown imminent 4682 | -1/Command | Destroyed Combat Programmer 4683 | -1/Command | Emitted hypermatrix ping 4683 | -1/Command | Core integrity fell below 50% 4683 | -1/Command | Core integrity fell below 20% 4683 | -1/Command | Spotted M Guard 4683 | -1/Command | Destroyed by M Guard with Advanced Micro-nuke Launcher Last Messages --------------- 04670_ 0b10 Conduit disabled. 04675_ Vortex Catalyst Activator destroyed. 04678_ Hyb. Antimatter Reactor destroyed. 04678_ Hacking Suite destroyed. 04682_ Supercharged Sigix Terminator expended. [Achievement: Hard Hitter] 04682_ Exp. Q-thruster destroyed. 04682_ Destroyed Exp. Q-thruster. 04682_ Adv. Power Amplifier destroyed. 04682_ Destroyed Adv. Power Amplifier. 04682_ Imp. System Shield destroyed. 04682_ Destroyed Imp. System Shield. 04682_ ALERT: High security lockdown imminent, T-100. 04682_ Imp. Diametric Drive destroyed. 04682_ Knocked back. 04683_ Emitted hypermatrix ping. 04683_ Penetrated by EMDS Slug. 04683_ Adv. Weight Redist. System destroyed. 04683_ Cld. Q-thruster destroyed. Map ----- +----------------------------------------------------+ | ?????????????????????????????????????????????????? | | ?????????????????????????????????????????????????? | | ?????????????????????????????????????????????????? | | ?????????????????????????????????????????????????? | | ?????????????????????????????????????????????????? | | ????????????????????????????????##"#""""?????????? | | ??????????????????????????????## " " " " ??????? | | ????????????????????????????## " " " " "?????? | | ???????????????????????????## " """" """?"""?? | | ??????????????????????????## " ?? | | ???????????????????????; ; """"""""###""""" | | ????????????????????? ; ; " " | | ?????????????????? ; ; " " | | ???????????????? ; " " | | ?????????????? ; " " | | ????????????? ; " " | | ????????????? ; " " | | ???????????? " " | | ???????????? " " | | ??????????? " " | | ???????????";;;;;;; " " | | ??????????? ; " " | | ?#?#######";;;;;; ; " " | | "" """" ;;;;;; " " | | "" ; ; " " | | "" ;;;;;;; @ " " | | """""" ; " " | | " " " | | "" " " | | "" ;;;;;;; " " | | " ; ; " " | | ;;;;;;;; " """"" """ | | ; ; ; " " " " | | " ; ; ; ;;;"""" """ | | ; ; ; ; | | ; ; ; ; Y | | ; ; ; ; Y | | ; ; ; ; ; ?? | | " """" " " ; ; ; ; ???? | | """ " """" # " ; ; ; ????? ### ### | | " " " " #??? ; ; ; ????????????# ??# | | """""""" " #????? " " ??????????????###???### | | """ " """"""""#????????????????????????????????? | | """ " " " ?#????????????????????????????????? | | ?###############?????????????????????????????????? | | ?????????????????????????????????????????????????? | | ?????????????????????????????????????????????????? | | ?????????????????????????????????????????????????? | | ?????????????????????????????????????????????????? | | ?????????????????????????????????????????????????? | +----------------------------------------------------+ Best States ------------- Heat Dissipation 71 Energy Generation 51 Energy Capacity 1350 Matter Stores 441 Matter Capacity 450 Sight Range 16 Terrain Scan Range 20 Terrain Scan Density 210 ECM Strength 3 Jamming Range 16 Cloak Strength 3 Power Amplification 30 Additional Mass Support 9 Armor Coverage 150 Propulsion Shielding 33 Evasion (%) 72 Targeting Accuracy 8 Core Analysis 6 Offensive Hacking 34 Defensive Hacking 36 Authchip Count 1 Item Schematics ----------------- Enh. Nova Cannon | -2/Research | Hacked Robot Schematics ------------------ None Fabricated ------------ K-01 Serf | x4 | -7/Factory | Preloaded Alien Tech Used ----------------- Subatomic Replicator Core Stripper Core Reset Matrix Terrabomb Supercharged Sigix Terminator Achievements -------------- All-out Warlord Hard Hitter Challenges ------------ None Game ------ Seed ZhirovFortressCarapace Manual? 0 Play Time 02:35:07 Cumulative 152.9 hours Start 2025.03.16 @ 11:53:10 End 2025.03.16 @ 19:51:24 Sessions 3 Manual Loads 0 Difficulty Rogue Special Mode None Game No. 76 Rogue 76 Adventurer 0 Explorer 0 Win Type - Total 9 Types 4/0/3/0/2/0/0/0/0 Lore% 68 Gallery% 65 Achievement% 59 Wizard Run 0 Options --------- Layout 1 ASCII 0 Keyboard 0 Movement Numpad Keybinds 0 Fullscreen 1 Font 24/Smallcaps Map View 50x35 Zoom Use 0% Tactical HUD 1 Map Filters NONE Filters NONE Steam 1 RUN: ca7d8227-a677-42f1-ae8c-6659b611ee50